[Event "6th Uppsala Young Champions 2019"]
[Site "Uppsala"]
[Date "2019.10.26"]
[Round "3.12"]
[White "Muntean, Victor"]
[Black "Fjallheim, Leif Reinert"]
[Result "0-1"]
[ECO "B22"]
[WhiteElo "2020"]
[BlackElo "1985"]
[Annotator "NA"]
[PlyCount "74"]
[EventDate "2019.10.25"]
[EventType "swiss"]
[EventCountry "SWE"]
[SourceTitle "playchess.com"]
[Source "ChessBase"]
[SourceQuality "1"]
[TimeControl "5400+30"]

1. e4 {[%emt 0:00:00]} c5 {[%emt 0:00:00]} 2. c3 {[%emt 0:00:00]} Nf6 {[%emt 0:00:18]} 3. e5 {[%emt 0:00:00]} Nd5 {[%emt 0:00:08]} 4. d4 {[%emt 0:00:00]} cxd4 {[%emt 0:00:30]} 5. Nf3 {[%emt 0:00:00]} Nc6 {[%emt 0:00:31]} 6. cxd4 {[%emt 0:00:14]} d6 {[%emt 0:01:07]} 7. Bc4 {[%emt 0:00:27]} Nb6 {[%emt 0:02:39]} 8. Bb3 {[%emt 0:00:06]} dxe5 {[%emt 0:00:58]} 9. d5 {[%emt 0:00:06]} Na5 {[%emt 0:00:08]} 10. Nc3 {[%emt 0:00:10]} Bg4 {[%emt 0:01:54]} 11. Ba4+ {[%emt 0:04:38]} Nd7 {[%emt 0:13:23]} 12. O-O {[%emt 0:04:48]} g6 {[%emt 0:03:09]} 13. Re1 {[%emt 0:10:50]} Bg7 {[%emt 0:04:09]} 14. Re4 {[%emt 0:10:08]} Bxf3 {[%emt 0:06:12]} 15. Qxf3 {[%emt 0:00:08]} f5 {[%emt 0:01:54]} 16. b4 {[%emt 0:12:41]} fxe4 {[%emt 0:02:57]} 17. Nxe4 {[%emt 0:00:41]} Nc4 {[%emt 0:23:48]} 18. Ng5 {[%emt 0:01:08]} Bf6 {[%emt 0:02:11]} 19. Ne6 {[%emt 0:06:09]} Qb8 {[%emt 0:08:57]} 20. Bg5 {[%emt 0:11:34]} e4 {[%emt 0:09:05]} 21. Qh3 {[%emt 0:12:54]} Ncb6 {[%emt 0:06:16]} 22. Bxf6 {[%emt 0:12:39]} exf6 {[%emt 0:01:06]} 23. Re1 {[%emt 0:06:36]} Nxa4 {[%emt 0:06:09]} 24. Rxe4 {[%emt 0:01:52]} Ne5 {[%emt 0:01:03]} 25. Qh6 {[%emt 0:04:06]} Qc8 {[%emt 0:01:26]} 26. h3 {[%emt 0:00:07]} Qd7 {[%emt 0:00:16]} 27. f4 {[%emt 0:00:32]} Nc3 {[%emt 0:00:45]} 28. Re1 {[%emt 0:00:46]} Nxd5 {[%emt 0:00:48]} 29. Nc5 {[%emt 0:00:24]} Qe7 {[%emt 0:01:09]} 30. fxe5 {[%emt 0:00:44]} fxe5 {[%emt 0:01:19]} 31. Qd2 {[%emt 0:00:25]} O-O-O {[%emt 0:00:37]} 32. Rc1 {[%emt 0:00:34]} Kb8 {[%emt 0:00:16]} 33. b5 {[%emt 0:00:03]} Nf4 {[%emt 0:00:22]} 34. Qb2 {[%emt 0:00:23]} Nd3 {[%emt 0:00:37]} 35. Qa3 {[%emt 0:00:43]} Nxc5 {[%emt 0:00:34]} 36. Rxc5 {[%emt 0:00:06]} Rd1+ {[%emt 0:00:21]} 37. Kh2 {[%emt 0:00:04]} Qd6 {[%emt 0:00:17]} 0-1

[Event "6th Uppsala Young Champions 2019"]
[Site "Uppsala"]
[Date "2019.10.26"]
[Round "3.13"]
[White "Wernberg, Hugo"]
[Black "Grahn, Vidar"]
[Result "1-0"]
[ECO "B13"]
[WhiteElo "2006"]
[BlackElo "1926"]
[Annotator "NA"]
[PlyCount "83"]
[EventDate "2019.10.25"]
[EventType "swiss"]
[EventCountry "SWE"]
[SourceTitle "playchess.com"]
[Source "ChessBase"]
[SourceQuality "1"]
[TimeControl "5400+30"]

1. c4 {[%emt 0:00:00]} c6 {[%emt 0:00:00]} 2. e4 {[%emt 0:00:00]} d5 {[%emt 0:00:02]} 3. exd5 {[%emt 0:00:02]} cxd5 {[%emt 0:00:06]} 4. cxd5 {[%emt 0:00:10]} Nf6 {[%emt 0:01:02]} 5. Nc3 {[%emt 0:01:33]} Nxd5 {[%emt 0:01:41]} 6. Nf3 {[%emt 0:02:33]} Nc6 {[%emt 0:03:12]} 7. d4 {[%emt 0:01:35]} Bg4 {[%emt 0:01:56]} 8. Be2 {[%emt 0:01:51]} e6 {[%emt 0:01:14]} 9. O-O {[%emt 0:01:49]} Be7 {[%emt 0:04:10]} 10. Qb3 {[%emt 0:04:29]} Qd7 {[%emt 0:10:14]} 11. Nxd5 {[%emt 0:02:19]} exd5 {[%emt 0:00:41]} 12. Bb5 {[%emt 0:04:04]} Bxf3 {[%emt 0:03:15]} 13. Qxf3 {[%emt 0:00:58]} O-O {[%emt 0:00:42]} 14. Be3 {[%emt 0:02:46]} Bf6 {[%emt 0:01:27]} 15. Rac1 {[%emt 0:01:58]} Rac8 {[%emt 0:02:36]} 16. Rc5 {[%emt 0:05:15]} Rfd8 {[%emt 0:01:18]} 17. Rfc1 {[%emt 0:00:37]} a6 {[%emt 0:02:01]} 18. Ba4 {[%emt 0:06:37]} Nxd4 {[%emt 0:05:56]} 19. Qxf6 {[%emt 0:19:45]} Ne2+ {[%emt 0:02:30]} 20. Kf1 {[%emt 0:00:11]} b5 {[%emt 0:00:19]} 21. Qxa6 {[%emt 0:03:53]} Nxc1 {[%emt 0:03:19]} 22. Bxb5 {[%emt 0:03:37]} Qf5 {[%emt 0:00:26]} 23. Qa3 {[%emt 0:17:38]} Rxc5 {[%emt 0:03:05]} 24. Qxc5 {[%emt 0:01:03]} Rc8 {[%emt 0:01:52]} 25. Qd4 {[%emt 0:02:43]} Qb1 {[%emt 0:01:54]} 26. Qxd5 {[%emt 0:02:41]} Nd3+ {[%emt 0:00:36]} 27. Ke2 {[%emt 0:00:24]} Qc2+ {[%emt 0:00:41]} 28. Kf3 {[%emt 0:01:25]} Ne1+ {[%emt 0:01:14]} 29. Kg3 {[%emt 0:01:44]} Qg6+ {[%emt 0:01:48]} 30. Kh3 {[%emt 0:01:17]} Kh8 {[%emt 0:09:46]} 31. Bd2 {[%emt 0:01:54]} f5 {[%emt 0:10:16]} 32. Be2 {[%emt 0:00:17]} Re8 {[%emt 0:02:21]} 33. Bd1 {[%emt 0:02:55]} Qxg2+ {[%emt 0:09:32]} 34. Qxg2 {[%emt 0:00:02]} Nxg2 {[%emt 0:00:07]} 35. Kxg2 {[%emt 0:00:27]} Rd8 {[%emt 0:00:10]} 36. Bc3 {[%emt 0:00:25]} Rxd1 {[%emt 0:00:05]} 37. a4 {[%emt 0:00:23]} Rd8 {[%emt 0:04:51]} 38. a5 {[%emt 0:00:18]} Rb8 {[%emt 0:00:58]} 39. b4 {[%emt 0:00:20]} Rb7 {[%emt 0:00:34]} 40. a6 {[%emt 0:00:52]} Rb6 {[%emt 0:00:38]} 41. b5 {[%emt 0:00:10]} Rxb5 {[%emt 0:00:28]} 42. a7 {[%emt 0:00:11]} 1-0

[Event "6th Uppsala Young Champions 2019"]
[Site "Uppsala"]
[Date "2019.10.26"]
[Round "3.14"]
[White "Soderstrom, Adrian"]
[Black "Skahlberg Bjerknes-Lima de Far, Warg"]
[Result "1-0"]
[ECO "E16"]
[WhiteElo "1960"]
[BlackElo "1637"]
[Annotator "NA"]
[PlyCount "59"]
[EventDate "2019.10.25"]
[EventType "swiss"]
[EventCountry "SWE"]
[SourceTitle "playchess.com"]
[Source "ChessBase"]
[SourceQuality "1"]
[TimeControl "5400+30"]

1. d4 {[%emt 1:30:30]} Nf6 {[%emt 1:30:30]} 2. c4 {[%emt 0:00:30]} e6 {[%emt 0:00:30]} 3. Nf3 {[%emt 0:00:30]} b6 {[%emt 0:00:30]} 4. g3 {[%emt 0:00:30]} Bb7 {[%emt 0:00:30]} 5. Bg2 {[%emt 0:00:30]} c5 {[%emt 0:00:30]} 6. d5 {[%emt 0:00:30]} exd5 {[%emt 0:00:30]} 7. O-O {[%emt 0:00:30]} dxc4 {[%emt 0:00:30]} 8. e4 {[%emt 0:00:30]} Bxe4 {[%emt 0:00:30]} 9. Nc3 {[%emt 0:00:30]} d5 {[%emt 0:00:30]} 10. Nxe4 {[%emt 0:00:30]} Nxe4 {[%emt 0:00:30]} 11. Ne5 {[%emt 0:00:30]} Be7 {[%emt 0:00:30]} 12. Qa4+ {[%emt 0:00:30]} Nd7 {[%emt 0:00:30]} 13. Bxe4 {[%emt 0:00:30]} dxe4 {[%emt 0:00:30]} 14. Rd1 {[%emt 0:00:30]} Qc7 {[%emt 0:00:30]} 15. Rxd7 {[%emt 0:00:30]} b5 {[%emt 0:00:30]} 16. Qxb5 {[%emt 0:00:30]} Rb8 {[%emt 0:00:30]} 17. Qa4 {[%emt 0:00:30]} Rb4 {[%emt 0:00:30]} 18. Qa6 {[%emt 0:00:30]} Rb6 {[%emt 0:00:30]} 19. Qa4 {[%emt 0:00:30]} Rb4 {[%emt 0:00:30]} 20. Rxc7+ {[%emt 0:00:30]} Rxa4 {[%emt 0:00:30]} 21. Rc8+ {[%emt 0:00:30]} Bd8 {[%emt 0:00:30]} 22. Bg5 {[%emt 0:00:30]} f6 {[%emt 0:00:30]} 23. Rd1 {[%emt 0:00:30]} Ke7 {[%emt 0:00:30]} 24. Nc6+ Ke6 {[%emt 0:00:30]} 25. Nxd8+ {[%emt 0:01:00]} Rxd8 {[%emt 0:00:30]} 26. Rcxd8 {[%emt 0:00:30]} fxg5 {[%emt 0:00:30]} 27. Re8+ {[%emt 0:00:30]} Kf7 {[%emt 0:00:30]} 28. Rxe4 {[%emt 0:00:30]} Rxa2 {[%emt 0:00:30]} 29. Rxc4 {[%emt 0:00:30]} Rxb2 {[%emt 0:00:30]} 30. Rxc5 1-0

[Event "6th Uppsala Young Champions 2019"]
[Site "Uppsala"]
[Date "2019.10.26"]
[Round "3.15"]
[White "Mitra, Akash"]
[Black "Berglind, Axel"]
[Result "0-1"]
[ECO "B07"]
[WhiteElo "1936"]
[BlackElo "2062"]
[Annotator "NA RC"]
[PlyCount "140"]
[EventDate "2019.10.25"]
[EventType "swiss"]
[EventCountry "SWE"]
[SourceTitle "playchess.com"]
[Source "ChessBase"]
[SourceQuality "1"]
[TimeControl "5400+30"]

1. d4 {[%emt 1:30:30]} Nf6 {[%emt 1:30:30]} 2. Bf4 {[%emt 0:00:30]} g6 {[%emt 0:00:30]} 3. Nc3 {[%emt 0:00:30]} Bg7 {[%emt 0:00:30]} 4. e4 {[%emt 0:00:30]} d6 {[%emt 0:00:30]} 5. Qd2 {[%emt 0:00:30]} Nbd7 {[%emt 0:00:30]} 6. O-O-O {[%emt 0:00:30]} c5 {[%emt 0:00:30]} 7. Nf3 {[%emt 0:00:30]} cxd4 {[%emt 0:00:30]} 8. Nxd4 {[%emt 0:00:30]} a6 {[%emt 0:00:30]} 9. Bh6 {[%emt 0:00:30]} Bxh6 {[%emt 0:00:30]} 10. Qxh6 {[%emt 0:00:30]} b5 {[%emt 0:00:30]} 11. Bd3 {[%emt 0:00:30]} Bb7 {[%emt 0:00:30]} 12. Rhe1 {[%emt 0:00:30]} Rc8 {[%emt 0:00:30]} 13. Nd5 {[%emt 0:00:30]} Nxd5 {[%emt 0:00:30]} 14. exd5 {[%emt 0:00:30]} Bxd5 {[%emt 0:00:30]} 15. f4 {[%emt 0:00:30]} e6 {[%emt 0:00:30]} 16. f5 {[%emt 0:00:30]} Ne5 {[%emt 0:00:30]} 17. fxg6 {[%emt 0:00:30]} fxg6 {[%emt 0:00:30]} 18. Qg7 {[%emt 0:00:30]} Rf8 {[%emt 0:00:30]} 19. Qxh7 {[%emt 0:00:30]} Qf6 {[%emt 0:00:30]} 20. Kb1 {[%emt 0:00:30]} Nxd3 {[%emt 0:00:30]} 21. Rxd3 {[%emt 0:00:30]} Be4 {[%emt 0:00:30]} 22. Rdd1 {[%emt 0:00:30]} Rc4 {[%emt 0:00:30]} 23. Qa7 {[%emt 0:00:30]} Qe5 {[%emt 0:00:30]} 24. b3 {[%emt 0:00:30]} Rc5 {[%emt 0:00:30]} 25. Rd2 {[%emt 0:00:30]} Rf7 {[%emt 0:00:30]} 26. Qb8+ {[%emt 0:00:30]} Kd7 {[%emt 0:00:30]} 27. Rde2 {[%emt 0:00:30]} Qxd4 {[%emt 0:00:30]} 28. Rxe4 {[%emt 0:00:30]} Qc3 {[%emt 0:00:30]} 29. R4e2 {[%emt 0:00:30]} Rf2 {[%emt 0:00:30]} 30. Qb7+ {[%emt 0:00:30]} Rc7 {[%emt 0:00:30]} 31. Qe4 {[%emt 0:00:30]} Rxe2 {[%emt 0:00:30]} 32. Rxe2 {[%emt 0:00:30]} Qf6 {[%emt 0:00:30]} 33. Re3 {[%emt 0:00:30]} d5 {[%emt 0:00:30]} 34. Qd3 {[%emt 0:00:30]} Kd6 {[%emt 0:00:30]} 35. a4 {[%emt 0:00:30]} Ra7 {[%emt 0:00:30]} 36. a5 {[%emt 0:00:30]} Rh7 {[%emt 0:00:30]} 37. Rf3 {[%emt 0:00:30]} Qe5 {[%emt 0:00:30]} 38. h3 {[%emt 0:00:30]} Rg7 {[%emt 0:00:30]} 39. Rg3 {[%emt 0:00:30]} g5 {[%emt 0:00:30]} 40. Rg4 {[%emt 0:00:30]} Rf7 {[%emt 0:00:30]} 41. Ka2 {[%emt 0:00:30]} Rf2 {[%emt 0:00:30]} 42. Qg3 {[%emt 0:00:30]} Rxc2+ {[%emt 0:00:30]} 43. Ka3 {[%emt 0:00:30]} Qxg3 {[%emt 0:00:30]} 44. Rxg3 {[%emt 0:00:30]} Kc5 {[%emt 0:00:30]} 45. b4+ {[%emt 0:00:30]} Kc4 {[%emt 0:00:30]} 46. Rxg5 {[%emt 0:00:30]} d4 {[%emt 0:00:30]} 47. Re5 {[%emt 0:00:30]} Rxg2 {[%emt 0:00:30]} 48. Rxe6 {[%emt 0:00:30]} Rg3+ {[%emt 0:00:30]} 49. Kb2 {[%emt 0:00:30]} Rxh3 {[%emt 0:00:30]} 50. Rxa6 {[%emt 0:00:30]} Kxb4 {[%emt 0:00:30]} 51. Rd6 {[%emt 0:00:30]} Rh2+ {[%emt 0:00:30]} 52. Kc1 {[%emt 0:00:30]} Kc3 {[%emt 0:00:30]} 53. Rc6+ {[%emt 0:00:30]} Kd3 {[%emt 0:00:30]} 54. Rb6 {[%emt 0:00:30]} b4 {[%emt 0:00:30]} 55. a6 {[%emt 0:00:30]} Ra2 {[%emt 0:00:30]} 56. Rxb4 {[%emt 0:00:30]} Rxa6 {[%emt 0:00:30]} 57. Rb3+ {[%emt 0:00:30]} Ke2 {[%emt 0:00:30]} 58. Rb7 {[%emt 0:00:30]} Rc6+ {[%emt 0:00:30]} 59. Kb1 {[%emt 0:00:30]} Kd2 {[%emt 0:00:30]} 60. Rf7 {[%emt 0:00:30]} Rb6+ {[%emt 0:00:30]} 61. Ka2 {[%emt 0:00:30]} d3 {[%emt 0:00:30]} 62. Rd7 {[%emt 0:00:30]} Kc2 {[%emt 0:00:30]} 63. Rc7+ {[%emt 0:00:30]} Kd1 {[%emt 0:00:30]} 64. Rd7 {[%emt 0:00:30]} d2 {[%emt 0:00:30]} 65. Rd5 {[%emt 0:00:30]} Rb4 {[%emt 0:00:30]} 66. Ka3 {[%emt 0:00:30]} Re4 {[%emt 0:00:30]} 67. Kb3 Ke2 {[%emt 0:00:30]} 68. Kc2 {[%emt 0:01:00]} Rc4+ {[%emt 0:00:30]} 69. Kb3 {[%emt 0:00:30]} Rc1 {[%emt 0:00:30]} 70. Re5+ {[%emt 0:00:30]} Kf3 {[%emt 0:00:30]} 0-1

[Event "6th Uppsala Young Champions 2019"]
[Site "Uppsala"]
[Date "2019.10.26"]
[Round "3.16"]
[White "Dingertz, Erik"]
[Black "Trost, Edvin"]
[Result "0-1"]
[ECO "A17"]
[WhiteElo "1908"]
[BlackElo "1982"]
[Annotator "NA"]
[PlyCount "86"]
[EventDate "2019.10.25"]
[EventType "swiss"]
[EventCountry "SWE"]
[SourceTitle "playchess.com"]
[Source "ChessBase"]
[SourceQuality "1"]
[TimeControl "5400+30"]

1. Nf3 {[%emt 1:30:30]} Nf6 {[%emt 1:30:30]} 2. c4 {[%emt 0:00:30]} b6 {[%emt 0:00:30]} 3. g3 {[%emt 0:00:30]} Bb7 {[%emt 0:00:30]} 4. Bg2 {[%emt 0:00:30]} e6 {[%emt 0:00:30]} 5. O-O {[%emt 0:00:30]} Be7 {[%emt 0:00:30]} 6. Nc3 {[%emt 0:00:30]} O-O {[%emt 0:00:30]} 7. b3 {[%emt 0:00:30]} d5 {[%emt 0:00:30]} 8. Bb2 {[%emt 0:00:30]} d4 {[%emt 0:00:30]} 9. Nb5 {[%emt 0:00:30]} c5 {[%emt 0:00:30]} 10. e3 {[%emt 0:00:30]} a6 {[%emt 0:00:30]} 11. Na3 {[%emt 0:00:30]} dxe3 {[%emt 0:00:30]} 12. dxe3 {[%emt 0:00:30]} Qc7 {[%emt 0:00:30]} 13. Qe2 {[%emt 0:00:30]} Nc6 {[%emt 0:00:30]} 14. Nb1 {[%emt 0:00:30]} Rfd8 {[%emt 0:00:30]} 15. Nc3 {[%emt 0:00:30]} Rab8 {[%emt 0:00:30]} 16. Rad1 {[%emt 0:00:30]} Ba8 {[%emt 0:00:30]} 17. Rxd8+ Rxd8 {[%emt 0:00:30]} 18. Rd1 {[%emt 0:01:00]} Kf8 {[%emt 0:00:30]} 19. a3 {[%emt 0:00:30]} Qb8 {[%emt 0:00:30]} 20. Rxd8+ {[%emt 0:00:30]} Qxd8 {[%emt 0:00:30]} 21. Qd2 {[%emt 0:00:30]} Qb8 {[%emt 0:00:30]} 22. e4 {[%emt 0:00:30]} e5 {[%emt 0:00:30]} 23. Qe2 {[%emt 0:00:30]} Nd4 {[%emt 0:00:30]} 24. Nxd4 {[%emt 0:00:30]} cxd4 {[%emt 0:00:30]} 25. Nd5 {[%emt 0:00:30]} b5 {[%emt 0:00:30]} 26. b4 {[%emt 0:00:30]} Bc6 {[%emt 0:00:30]} 27. f4 {[%emt 0:00:30]} bxc4 {[%emt 0:00:30]} 28. Qxc4 {[%emt 0:00:30]} Bb5 {[%emt 0:00:30]} 29. Qc7 {[%emt 0:00:30]} Qxc7 {[%emt 0:00:30]} 30. Nxc7 {[%emt 0:00:30]} exf4 {[%emt 0:00:30]} 31. Nxb5 {[%emt 0:00:30]} axb5 {[%emt 0:00:30]} 32. gxf4 {[%emt 0:00:30]} d3 {[%emt 0:00:30]} 33. Bc1 {[%emt 0:00:30]} Bd8 {[%emt 0:00:30]} 34. e5 {[%emt 0:00:30]} Bb6+ {[%emt 0:00:30]} 35. Kf1 {[%emt 0:00:30]} Ng4 {[%emt 0:00:30]} 36. Bc6 {[%emt 0:00:30]} Ne3+ {[%emt 0:00:30]} 37. Ke1 {[%emt 0:00:30]} Nc2+ {[%emt 0:00:30]} 38. Kd1 {[%emt 0:00:30]} Nd4 {[%emt 0:00:30]} 39. Be3 {[%emt 0:00:30]} Nxc6 {[%emt 0:00:30]} 40. Bxb6 {[%emt 0:00:30]} g5 {[%emt 0:00:30]} 41. Bc5+ {[%emt 0:00:30]} Ke8 {[%emt 0:00:30]} 42. Bd6 {[%emt 0:00:30]} gxf4 {[%emt 0:00:30]} 43. Kd2 {[%emt 0:00:30]} Kd7 {[%emt 0:00:30]} 0-1

[Event "6th Uppsala Young Champions 2019"]
[Site "Uppsala"]
[Date "2019.10.27"]
[Round "4.1"]
[White "Abdrlauf, Elham"]
[Black "Mihajlov, Sebastian"]
[Result "0-1"]
[ECO "D10"]
[WhiteElo "2213"]
[BlackElo "2387"]
[Annotator "NA"]
[PlyCount "74"]
[EventDate "2019.10.25"]
[EventType "swiss"]
[EventCountry "SWE"]
[SourceTitle "playchess.com"]
[Source "ChessBase"]
[SourceQuality "1"]
[TimeControl "5400+30"]

1. d4 {[%emt 0:12:31]} Nf6 {[%emt 0:04:52]} 2. c4 {[%emt 0:00:11]} c6 {[%emt 0:00:03]} 3. Nc3 {[%emt 0:00:08]} d5 {[%emt 0:00:05]} 4. cxd5 {[%emt 0:00:06]} cxd5 {[%emt 0:00:04]} 5. Bf4 {[%emt 0:00:08]} Nc6 {[%emt 0:00:02]} 6. e3 {[%emt 0:00:15]} Bf5 {[%emt 0:01:33]} 7. Qb3 {[%emt 0:00:08]} Na5 {[%emt 0:00:05]} 8. Qa4+ {[%emt 0:00:07]} Bd7 {[%emt 0:00:04]} 9. Qc2 {[%emt 0:00:06]} e6 {[%emt 0:00:26]} 10. Nf3 {[%emt 0:00:52]} Be7 {[%emt 0:00:29]} 11. Bd3 {[%emt 0:00:14]} Nc6 {[%emt 0:00:08]} 12. a3 {[%emt 0:00:19]} Nh5 {[%emt 0:00:06]} 13. Be5 {[%emt 0:04:12]} f6 {[%emt 0:00:04]} 14. Bg3 {[%emt 0:01:30]} f5 {[%emt 0:00:54]} 15. Be5 {[%emt 0:07:19]} Nf6 {[%emt 0:00:05]} 16. h4 {[%emt 0:06:27]} Ng4 {[%emt 0:17:58]} 17. Bf4 {[%emt 0:02:29]} Rc8 {[%emt 0:00:06]} 18. g3 {[%emt 0:06:13]} O-O {[%emt 0:06:11]} 19. Ke2 {[%emt 0:08:01]} h6 {[%emt 0:06:53]} 20. h5 {[%emt 0:01:02]} Be8 {[%emt 0:02:40]} 21. Nh4 {[%emt 0:09:35]} Bg5 {[%emt 0:08:15]} 22. Ng6 {[%emt 0:04:55]} Bxg6 {[%emt 0:00:05]} 23. hxg6 {[%emt 0:00:07]} Qf6 {[%emt 0:01:00]} 24. Qb3 {[%emt 0:05:41]} Bxf4 {[%emt 0:03:29]} 25. gxf4 {[%emt 0:00:08]} Qxd4 {[%emt 0:01:43]} 26. Qxb7 {[%emt 0:01:29]} Qf6 {[%emt 0:08:36]} 27. f3 {[%emt 0:00:23]} Rb8 {[%emt 0:01:06]} 28. Qxc6 {[%emt 0:00:02]} Rxb2+ {[%emt 0:00:07]} 29. Bc2 {[%emt 0:00:27]} Rxc2+ {[%emt 0:00:09]} 30. Kd3 {[%emt 0:00:14]} Nxe3 {[%emt 0:01:19]} 31. Nxd5 {[%emt 0:00:21]} Nxd5 {[%emt 0:09:33]} 32. Kxc2 {[%emt 0:02:24]} Ne7 {[%emt 0:00:33]} 33. Qd7 {[%emt 0:01:19]} Rc8+ {[%emt 0:00:43]} 34. Kd3 {[%emt 0:00:53]} Qc3+ {[%emt 0:00:20]} 35. Ke2 {[%emt 0:00:42]} Qb2+ {[%emt 0:00:03]} 36. Qd2 {[%emt 0:00:19]} Rc2 {[%emt 0:00:05]} 37. Rhd1 {[%emt 0:00:04]} Nxg6 {[%emt 0:28:36]} 0-1

[Event "6th Uppsala Young Champions 2019"]
[Site "Uppsala"]
[Date "2019.10.27"]
[Round "4.3"]
[White "Roshka, Yevgeniy"]
[Black "Apol, Luitjen Akselsson"]
[Result "1-0"]
[ECO "E70"]
[WhiteElo "2369"]
[BlackElo "2129"]
[Annotator "NA"]
[PlyCount "111"]
[EventDate "2019.10.25"]
[EventType "swiss"]
[EventCountry "SWE"]
[SourceTitle "playchess.com"]
[Source "ChessBase"]
[SourceQuality "1"]
[TimeControl "5400+30"]

1. d4 {[%emt 0:07:31]} Nf6 {[%emt 0:00:00]} 2. c4 {[%emt 0:00:02]} g6 {[%emt 0:00:35]} 3. Nc3 {[%emt 0:00:02]} Bg7 {[%emt 0:00:09]} 4. e4 {[%emt 0:00:09]} d6 {[%emt 0:00:37]} 5. Nge2 {[%emt 0:00:07]} O-O {[%emt 0:00:18]} 6. Ng3 {[%emt 0:00:05]} c5 {[%emt 0:02:10]} 7. d5 $1 {[%emt 0:00:07]} e6 $14 {[%emt 0:01:24]} 8. Be2 {[%emt 0:00:12]} exd5 {[%emt 0:00:21]} 9. exd5 {[%emt 0:00:05]} Re8 {[%emt 0:04:25]} 10. O-O {[%emt 0:00:02]} a6 {[%emt 0:02:23]} 11. a4 {[%emt 0:00:44]} Nbd7 {[%emt 0:01:22]} 12. h3 {[%emt 0:06:47]} Rb8 {[%emt 0:02:14]} 13. Bf4 {[%emt 0:07:04]} Qe7 {[%emt 0:08:50]} 14. Qd2 {[%emt 0:02:42]} Qf8 {[%emt 0:02:24]} 15. Kh1 {[%emt 0:03:54]} Kh8 {[%emt 0:02:14]} 16. Rae1 {[%emt 0:00:28]} b6 {[%emt 0:06:49]} 17. Bg5 {[%emt 0:06:30]} Ng8 {[%emt 0:03:31]} 18. f4 {[%emt 0:04:31]} f5 {[%emt 0:05:23]} 19. Bd3 {[%emt 0:02:38]} Ndf6 {[%emt 0:01:38]} 20. Rxe8 {[%emt 0:01:22]} Qxe8 {[%emt 0:00:08]} 21. Re1 {[%emt 0:00:04]} Qf7 {[%emt 0:00:20]} 22. Qc2 {[%emt 0:01:40]} Bd7 {[%emt 0:03:02]} 23. Qb3 {[%emt 0:01:31]} Ne7 {[%emt 0:02:16]} 24. a5 {[%emt 0:03:01]} b5 {[%emt 0:01:25]} 25. cxb5 {[%emt 0:00:19]} axb5 {[%emt 0:00:29]} 26. Nxb5 {[%emt 0:05:01]} Bxb5 {[%emt 0:08:00]} 27. Bxb5 {[%emt 0:00:02]} Qxd5 {[%emt 0:09:04]} 28. Qxd5 {[%emt 0:00:01]} Nexd5 {[%emt 0:00:16]} 29. Bc4 {[%emt 0:01:57]} h6 {[%emt 0:02:45]} 30. Bxf6 {[%emt 0:01:56]} Nxf6 {[%emt 0:00:01]} 31. Bf7 {[%emt 0:03:20]} Kh7 {[%emt 0:00:58]} 32. a6 {[%emt 0:00:20]} Ra8 {[%emt 0:03:17]} 33. Ra1 {[%emt 0:00:06]} Ra7 {[%emt 0:01:20]} 34. Ra2 {[%emt 0:00:32]} d5 {[%emt 0:02:28]} 35. Ne2 {[%emt 0:04:33]} d4 {[%emt 0:00:06]} 36. Nc1 {[%emt 0:00:05]} Ne4 {[%emt 0:01:15]} 37. Nd3 {[%emt 0:01:11]} Rxf7 {[%emt 0:04:40]} 38. a7 {[%emt 0:00:12]} Rf8 {[%emt 0:00:05]} 39. a8=Q {[%emt 0:00:18]} Rxa8 {[%emt 0:00:07]} 40. Rxa8 {[%emt 0:00:03]} c4 {[%emt 0:00:06]} 41. Ne5 {[%emt 0:01:39]} d3 {[%emt 0:00:40]} 42. Rd8 {[%emt 0:00:27]} Nd2 {[%emt 0:11:40]} 43. Kg1 {[%emt 0:02:09]} g5 {[%emt 0:00:04]} 44. g3 {[%emt 0:00:04]} gxf4 {[%emt 0:00:19]} 45. gxf4 {[%emt 0:00:02]} Bxe5 {[%emt 0:01:26]} 46. fxe5 {[%emt 0:00:02]} Nf3+ {[%emt 0:00:09]} 47. Kf2 {[%emt 0:00:06]} Nxe5 {[%emt 0:00:08]} 48. Rd5 {[%emt 0:00:26]} Nf7 {[%emt 0:08:08]} 49. Rxf5 {[%emt 0:00:11]} Nd6 {[%emt 0:01:41]} 50. Rd5 {[%emt 0:01:20]} Ne4+ {[%emt 0:00:54]} 51. Ke3 {[%emt 0:01:50]} c3 {[%emt 0:00:00]} 52. bxc3 {[%emt 0:00:06]} Nxc3 {[%emt 0:00:01]} 53. Rxd3 {[%emt 0:00:01]} Na4 {[%emt 0:01:19]} 54. Kd4 {[%emt 0:00:28]} Nb6 {[%emt 0:00:01]} 55. Kc5 {[%emt 0:00:02]} Nc8 {[%emt 0:00:52]} 56. Rd8 {[%emt 0:00:02]} 1-0

[Event "6th Uppsala Young Champions 2019"]
[Site "Uppsala"]
[Date "2019.10.27"]
[Round "4.4"]
[White "Palozza, Christian"]
[Black "Storme, Isak"]
[Result "0-1"]
[ECO "E61"]
[WhiteElo "2187"]
[BlackElo "2244"]
[Annotator "NA"]
[PlyCount "98"]
[EventDate "2019.10.25"]
[EventType "swiss"]
[EventCountry "SWE"]
[SourceTitle "playchess.com"]
[Source "ChessBase"]
[SourceQuality "1"]
[TimeControl "5400+30"]

1. d4 {[%emt 1:27:27]} Nf6 {[%emt 1:27:27]} 2. Nf3 {[%emt 0:00:29]} g6 {[%emt 0:00:28]} 3. e3 Bg7 {[%emt 0:03:35]} 4. c4 {[%emt 0:00:58]} O-O {[%emt 0:00:00]} 5. Nc3 {[%emt 0:00:30]} d6 {[%emt 0:00:00]} 6. Bd3 {[%emt 0:00:30]} Re8 {[%emt 0:00:00]} 7. O-O {[%emt 0:00:32]} Nbd7 {[%emt 0:00:00]} 8. Qc2 {[%emt 0:00:31]} c6 {[%emt 0:00:00]} 9. Re1 {[%emt 0:00:33]} e5 {[%emt 0:00:00]} 10. e4 {[%emt 0:00:43]} exd4 {[%emt 0:00:19]} 11. Nxd4 {[%emt 0:00:30]} Ng4 {[%emt 0:00:46]} 12. Nf3 {[%emt 0:00:38]} Qb6 {[%emt 0:00:41]} 13. Re2 {[%emt 0:00:49]} Nde5 {[%emt 0:00:38]} 14. Nxe5 {[%emt 0:00:38]} Nxe5 {[%emt 0:00:29]} 15. Bf4 {[%emt 0:00:43]} Bg4 {[%emt 0:00:46]} 16. Rd2 {[%emt 0:00:45]} Rad8 {[%emt 0:00:38]} 17. Be3 {[%emt 0:00:37]} Qc7 {[%emt 0:00:30]} 18. h3 {[%emt 0:00:36]} Bc8 {[%emt 0:00:31]} 19. f4 {[%emt 0:00:55]} Nxd3 {[%emt 0:00:37]} 20. Rxd3 {[%emt 0:00:32]} Qe7 {[%emt 0:00:33]} 21. Bd4 {[%emt 0:00:50]} Bxd4+ {[%emt 0:00:38]} 22. Rxd4 {[%emt 0:00:29]} Qh4 {[%emt 0:00:29]} 23. Qf2 {[%emt 0:00:31]} Qf6 {[%emt 0:00:37]} 24. Rad1 {[%emt 0:00:30]} a6 {[%emt 0:00:36]} 25. R4d3 {[%emt 0:00:40]} b5 {[%emt 0:00:38]} 26. cxb5 {[%emt 0:01:04]} axb5 27. b3 {[%emt 0:00:14]} b4 {[%emt 0:00:57]} 28. Na4 {[%emt 0:00:34]} Ba6 {[%emt 0:00:29]} 29. Rd4 {[%emt 0:00:30]} c5 {[%emt 0:00:30]} 30. Rd5 {[%emt 0:00:34]} Bb7 {[%emt 0:00:29]} 31. R5d2 {[%emt 0:00:29]} Bxe4 {[%emt 0:00:31]} 32. Re1 {[%emt 0:00:30]} Bc6 {[%emt 0:00:35]} 33. Rxe8+ {[%emt 0:00:31]} Rxe8 {[%emt 0:00:28]} 34. Nb6 {[%emt 0:00:30]} Re4 {[%emt 0:00:36]} 35. Nc4 {[%emt 0:00:32]} Rxf4 {[%emt 0:00:31]} 36. Qe2 {[%emt 0:00:32]} Rd4 {[%emt 0:00:37]} 37. Rxd4 Qxd4+ {[%emt 0:00:29]} 38. Kh1 {[%emt 0:01:00]} Qf6 {[%emt 0:01:52]} 39. Na5 {[%emt 0:00:31]} Bd5 {[%emt 0:00:00]} 40. Nc4 {[%emt 0:00:29]} Qa1+ {[%emt 0:00:00]} 41. Kh2 {[%emt 0:00:29]} Qf6 {[%emt 0:00:26]} 42. Qe8+ {[%emt 0:00:30]} Kg7 {[%emt 0:00:29]} 43. Qe2 {[%emt 0:00:29]} h5 {[%emt 0:00:33]} 44. Nb6 {[%emt 0:00:31]} Qf4+ {[%emt 0:00:38]} 45. Kg1 {[%emt 0:00:30]} Qd4+ {[%emt 0:00:30]} 46. Kh1 {[%emt 0:00:29]} Be4 {[%emt 0:00:30]} 47. Nc4 {[%emt 0:00:32]} d5 {[%emt 0:00:30]} 48. Nd6 {[%emt 0:00:30]} Qa1+ {[%emt 0:00:30]} 49. Kh2 {[%emt 0:00:29]} Qe5+ {[%emt 0:00:29]} 0-1